fUST/lending_fUST_20240909
["ID","MTS","AMOUNT","RATE_DAILY","PERIOD"]
[337588257,1725868238712,-500.0,0.00040526,31]
[337588258,1725868238722,-370.48223036,0.00040526,7]
[337588259,1725868238731,-382.33368346,0.00040526,31]
[337588260,1725868238740,-107689.378369,0.00040527,5]
[337588261,1725868238749,-184.77,0.00040527,3]
[337588262,1725868238760,-554.33,0.00040527,3]
[337588263,1725868238770,-151.0,0.00040527,14]
[337588264,1725868238779,-5470.2,0.00040537,30]
[337588265,1725868238790,-500.0,0.00040537,30]
[337588266,1725868238801,-1882.65,0.00040537,30]
[337588267,1725868238810,-11075.84,0.00040537,30]
[337588268,1725868238819,-1289.48,0.00040537,30]
[337588269,1725868238829,-1569.98,0.00040537,30]
[337588270,1725868238842,-500.0,0.00040537,30]
[337588271,1725868238852,-2186.35,0.00040537,30]
[337588272,1725868238861,-500.0,0.00040537,30]
[337588273,1725868238871,-500.0,0.00040537,30]
[337588274,1725868238882,-151.0,0.00040537,14]
[337588275,1725868238892,-1906.72,0.00040537,30]
[337588276,1725868238902,-151.0,0.00040537,14]
[337588277,1725868238912,-500.0,0.00040537,30]
[337588278,1725868238921,-272.50098039,0.00040537,30]
[337588279,1725868238931,-38793.04,0.00040537,18]
[337588280,1725868238941,-500.0,0.00040537,30]
[337588281,1725868238951,-2607.45,0.00040537,30]
[337588282,1725868238961,-151.0,0.00040537,14]
[337588283,1725868238971,-2171.16,0.00040537,21]
[337588284,1725868238981,-2312.06,0.00040537,30]
[337588285,1725868238991,-151.0,0.00040537,14]
[337588286,1725868239001,-151.0,0.00040537,14]
[337588287,1725868239012,-151.0,0.00040537,14]
[337588288,1725868239022,-151.0,0.00040537,14]
[337588289,1725868239031,-151.0,0.00040537,14]
[337588290,1725868239042,-151.0,0.00040587,14]
[337588291,1725868239053,-323068.135107,0.00040588,5]
[337588292,1725868239067,-500.0,0.00040597,30]
[337588293,1725868239077,-500.0,0.00040597,30]
[337588294,1725868239087,-500.0,0.00040597,30]
[337588295,1725868239098,-151.0,0.00040598,14]
[337588296,1725868239108,-151.0,0.00040598,14]
[337588297,1725868239118,-151.0,0.00040598,14]
[337588298,1725868239129,-151.0,0.00040598,14]
[337588299,1725868239140,-150.112233,0.000406,10]
[337588300,1725868239150,-150.112233,0.000406,8]
[337588301,1725868239160,-150.112233,0.000406,10]
[337588302,1725868239170,-150.112233,0.000406,9]
[337588303,1725868239180,-150.112233,0.000406,6]
[337588304,1725868239191,-150.112233,0.000406,8]
[337588305,1725868239200,-150.112233,0.000406,7]
[337588306,1725868239210,-2008.5199937,0.000406,28]
[337588307,1725868239221,-500.0,0.00040607,30]
[337588308,1725868239230,-500.0,0.00040607,30]
[337588309,1725868239240,-500.0,0.00040607,30]
[337588310,1725868239250,-500.0,0.00040607,30]
[337588311,1725868239261,-500.0,0.00040607,30]
[337588312,1725868239271,-500.0,0.00040607,30]
[337588313,1725868239281,-341.915384,0.00040607,14]
[337588314,1725868239290,-341.915384,0.00040607,14]
[337588315,1725868239299,-151.0,0.00040607,14]
[337588316,1725868239309,-151.0,0.00040607,14]
[337588317,1725868239319,-151.0,0.00040607,14]
[337588318,1725868239329,-151.0,0.00040607,14]
[337588319,1725868239339,-152.324702,0.00040607,14]
[337588320,1725868239349,-151.0,0.00040607,14]
[337588321,1725868239358,-151.0,0.00040607,14]
[337588322,1725868239368,-500.0,0.00040608,30]
[337588323,1725868239378,-500.0,0.00040608,30]
[337588324,1725868239388,-341.915384,0.00040608,14]
[337588325,1725868239399,-341.915384,0.00040608,14]
[337588326,1725868239409,-151.0,0.00040608,14]
[337588327,1725868239419,-151.0,0.00040608,14]
[337588328,1725868239429,-151.0,0.00040608,14]
[337588329,1725868239439,-500.0,0.00040616,30]
[337588330,1725868239448,-500.0,0.00040616,30]
[337588331,1725868239458,-230.12544805,0.00040616,30]
[337588332,1725868239468,-151.975802,0.00040617,14]
[337588333,1725868239477,-151.0,0.00040617,14]
[337588334,1725868239487,-341.915384,0.00040617,14]
[337588335,1725868239496,-341.915384,0.00040617,14]
[337588336,1725868239505,-151.0,0.00040617,14]
[337588337,1725868239517,-151.0,0.00040617,14]
[337588338,1725868239526,-254.546444,0.00040617,14]
[337588339,1725868239535,-254.546444,0.00040617,14]
[337588340,1725868239545,-151.0,0.00040617,14]
[337588341,1725868239555,-151.0,0.00040617,14]
[337588342,1725868239564,-500.0,0.00040618,30]
[337588343,1725868239573,-500.0,0.00040618,30]
[337588344,1725868239583,-500.0,0.00040618,30]
[337588345,1725868239593,-500.0,0.00040618,30]
[337588346,1725868239602,-500.0,0.00040618,30]
[337588348,1725868239612,-500.0,0.00040618,30]
[337588350,1725868239621,-500.0,0.00040618,30]
[337588352,1725868239631,-500.0,0.00040618,30]
[337588353,1725868239649,-388.06231556,0.00040618,30]
[337588354,1725868239662,-151.0,0.00040619,14]
[337588355,1725868239672,-341.915384,0.00040619,14]
[337588356,1725868239682,-341.915384,0.00040619,14]
[337588357,1725868239692,-151.0,0.00040619,14]
[337588358,1725868239701,-151.0,0.00040619,14]
[337588359,1725868239711,-254.546444,0.00040619,14]
[337588360,1725868239722,-254.546444,0.00040619,14]
[337588361,1725868239732,-155.824142,0.00040627,14]
[337588362,1725868239742,-341.915384,0.00040627,14]
[337588363,1725868239752,-341.915384,0.00040627,14]
[337588364,1725868239762,-151.0,0.00040627,14]
[337588365,1725868239771,-151.0,0.00040627,14]
[337588366,1725868239781,-254.546444,0.00040627,14]
[337588367,1725868239792,-254.546444,0.00040627,14]
[337588368,1725868239802,-151.0,0.00040628,14]
[337588369,1725868239812,-151.0,0.00040628,14]
[337588370,1725868239822,-151.0,0.00040628,14]
[337588371,1725868239832,-151.0,0.00040628,14]
[337588372,1725868239842,-151.0,0.00040628,14]
[337588373,1725868239853,-151.0,0.00040628,14]
[337588374,1725868239862,-151.0,0.00040628,14]
[337588375,1725868239889,-151.0,0.00040628,14]
[337588376,1725868239905,-153.72706,0.00040628,14]
[337588377,1725868239921,-153.72706,0.00040628,14]
[337588378,1725868239933,-153.72706,0.00040628,14]
[337588379,1725868239950,-153.72706,0.00040628,14]
[337588380,1725868239965,-213.848284,0.00040628,14]
[337588381,1725868239981,-213.848284,0.00040628,14]
[337588382,1725868239995,-261.326949,0.00040628,14]
[337588383,1725868240012,-261.326949,0.00040628,14]
[337588384,1725868240027,-261.326949,0.00040628,14]
[337588385,1725868240041,-213.848284,0.00040628,14]
[337588386,1725868240056,-261.326949,0.00040628,14]
[337588387,1725868240074,-213.848284,0.00040628,14]
[337588388,1725868240089,-1163.9,0.00040637,30]
[337588389,1725868240102,-1023.79,0.00040637,30]
[337588390,1725868240115,-500.0,0.00040637,30]
[337588391,1725868240126,-500.0,0.00040637,30]
[337588392,1725868240139,-151.0,0.00040637,14]
[337588393,1725868240153,-171.225568,0.00040637,14]
[337588394,1725868240168,-151.0,0.00040637,14]
[337588395,1725868240180,-151.0,0.00040637,14]
[337588396,1725868240196,-151.0,0.00040637,14]
[337588397,1725868240210,-151.0,0.00040637,14]
[337588398,1725868240224,-151.0,0.00040637,14]
[337588399,1725868240235,-151.0,0.00040637,14]
[337588400,1725868240247,-151.0,0.00040637,14]
[337588401,1725868240257,-151.0,0.00040637,14]
[337588402,1725868240273,-500.0,0.00040637,30]
[337588403,1725868240287,-500.0,0.00040637,30]
[337588404,1725868240299,-500.0,0.00040637,30]
[337588405,1725868240317,-153.72706,0.00040637,14]
[337588406,1725868240331,-153.72706,0.00040637,14]
[337588407,1725868240348,-153.72706,0.00040637,14]
[337588408,1725868240359,-153.72706,0.00040637,14]
[337588409,1725868240370,-2720.53,0.00040637,30]
[337588410,1725868240382,-1509.31,0.00040637,30]
[337588411,1725868240396,-500.0,0.00040637,30]
[337588412,1725868240410,-500.0,0.00040637,30]
[337588413,1725868240424,-764.28,0.00040637,30]
[337588414,1725868240439,-213.848284,0.00040637,14]
[337588415,1725868240455,-510.48,0.00040637,30]
[337588416,1725868240480,-500.0,0.00040637,30]
[337588417,1725868240494,-213.848284,0.00040637,14]
[337588418,1725868240507,-261.326949,0.00040637,14]
[337588419,1725868240529,-213.848284,0.00040637,14]
[337588420,1725868240543,-261.326949,0.00040637,14]
[337588421,1725868240558,-261.326949,0.00040637,14]
[337588422,1725868240570,-261.326949,0.00040637,14]
[337588423,1725868240583,-213.848284,0.00040637,14]
[337588424,1725868240596,-261.326949,0.00040637,14]
[337588425,1725868240610,-261.326949,0.00040637,14]
[337588426,1725868240623,-213.848284,0.00040637,14]
[337588427,1725868240635,-213.848284,0.00040637,14]
[337588428,1725868240650,-500.0,0.00040637,30]
[337588429,1725868240662,-652.07,0.00040637,30]
[337588430,1725868240675,-581.54,0.00040637,30]
[337588431,1725868240687,-500.0,0.00040637,30]
[337588432,1725868240699,-500.0,0.00040637,30]
[337588433,1725868240712,-182.516464,0.00040637,30]
[337588434,1725868240725,-1810.96,0.00040637,30]
[337588435,1725868240739,-378.6515039,0.00040637,30]
[337588436,1725868240752,-3118.29,0.00040637,30]
[337588437,1725868240767,-500.0,0.00040637,30]
[337588438,1725868240779,-461.4116296,0.00040637,30]
[337588439,1725868240790,-333.68941006,0.00040637,30]
[337588440,1725868240802,-501.59827416,0.00040637,30]
[337588441,1725868240814,-500.0,0.00040637,30]
[337588442,1725868240826,-501.44101717,0.00040637,30]
[337588443,1725868240837,-902.53,0.00040637,30]
[337588444,1725868240848,-500.0,0.00040637,30]
[337588445,1725868240860,-5102.96,0.00040637,30]
[337588446,1725868240873,-504.69781228,0.00040637,30]
[337588447,1725868240884,-500.0,0.00040637,30]
[337588448,1725868240896,-2613.08,0.00040637,30]
[337588449,1725868240908,-500.0,0.00040637,30]
[337588450,1725868240922,-500.0,0.00040637,30]
[337588451,1725868240934,-507.16773653,0.00040637,30]
[337588452,1725868240949,-500.0,0.00040637,30]
[337588453,1725868240962,-500.0,0.00040637,30]
[337588454,1725868240973,-501.44723009,0.00040637,30]
[337588455,1725868240986,-501.32763763,0.00040637,30]
[337588456,1725868240997,-500.0,0.00040637,30]
[337588457,1725868241011,-1372.21,0.00040637,30]
[337588458,1725868241023,-565.22,0.00040637,30]
[337588459,1725868241035,-1237.94,0.00040637,30]
[337588460,1725868241047,-500.0,0.00040637,30]
[337588461,1725868241059,-341.915384,0.00040637,14]
[337588462,1725868241072,-500.0,0.00040637,30]
[337588463,1725868241084,-341.915384,0.00040637,14]
[337588464,1725868241096,-341.915384,0.00040637,14]
[337588465,1725868241108,-1174.31,0.00040637,30]
[337588466,1725868241120,-341.915384,0.00040637,14]
[337588467,1725868241131,-341.915384,0.00040637,14]
[337588468,1725868241144,-341.915384,0.00040637,14]
[337588469,1725868241155,-999.0,0.00040637,30]
[337588470,1725868241167,-151.0,0.00040637,14]
[337588471,1725868241178,-151.0,0.00040637,14]
[337588472,1725868241189,-1258.09,0.00040637,30]
[337588473,1725868241201,-500.0,0.00040637,30]
[337588474,1725868241212,-153.372964,0.00040637,14]
[337588475,1725868241224,-500.0,0.00040637,30]
[337588476,1725868241236,-597.46422064,0.00040637,30]
[337588477,1725868241248,-500.0,0.00040637,30]
[337588478,1725868241263,-4327.19,0.00040637,30]
[337588479,1725868241275,-500.0,0.00040637,30]
[337588480,1725868241287,-1377.27,0.00040637,30]
[337588481,1725868241299,-1275.5,0.00040637,30]
[337588482,1725868241310,-254.546444,0.00040637,14]
[337588483,1725868241323,-254.546444,0.00040637,14]
[337588484,1725868241335,-254.546444,0.00040637,14]
[337588485,1725868241348,-254.546444,0.00040637,14]
[337588486,1725868241359,-2121.73,0.00040637,30]
[337588487,1725868241370,-500.0,0.00040637,30]
[337588488,1725868241382,-502.46728596,0.00040637,30]
[337588489,1725868241393,-519.84,0.00040637,30]
[337588490,1725868241407,-901.49,0.00040637,30]
[337588491,1725868241422,-1957.52,0.00040637,30]
[337588492,1725868241433,-1216.54,0.00040637,30]
[337588493,1725868241446,-1079.44,0.00040637,30]
[337588494,1725868241459,-573.36,0.00040637,30]
[337588495,1725868241470,-762.18,0.00040637,30]
[337588496,1725868241481,-1219.14,0.00040637,30]
[337588497,1725868241493,-796.66,0.00040637,30]
[337588498,1725868241506,-683.4,0.00040637,30]
[337588499,1725868241521,-500.0,0.00040637,30]
[337588500,1725868241534,-50874.38,0.00040637,30]
[337588501,1725868241547,-954.67,0.00040637,30]
[337588502,1725868241561,-500.0,0.00040637,30]
[337588503,1725868241574,-244.869803,0.00040637,14]
[337588504,1725868241595,-1774.894287,0.00040638,14]
[337588505,1725868241616,-1774.894287,0.00040638,14]
[337588506,1725868241639,-167.749523,0.00040638,14]
[337588507,1725868241660,-167.749523,0.00040638,14]
[337588508,1725868241681,-151.0,0.00040638,14]
[337588509,1725868241698,-273.777322,0.00040638,14]
[337588510,1725868241708,-151.0,0.00040638,14]
[337588511,1725868241717,-153.934964,0.00040638,14]
[337588512,1725868241975,-151.0,0.00040638,14]
[337588513,1725868241988,-151.0,0.00040638,14]
[337588514,1725868241998,-151.0,0.00040638,14]
[337588515,1725868242008,-151.0,0.00040638,14]
[337588516,1725868242018,-151.0,0.00040638,14]
[337588517,1725868242027,-204.191338,0.00040638,14]
[337588518,1725868242037,-151.0,0.00040638,14]
[337588519,1725868242047,-151.0,0.00040638,14]
[337588520,1725868242059,-263.57351,0.00040638,14]
[337588521,1725868242069,-153.72706,0.00040638,14]
[337588522,1725868242079,-153.72706,0.00040638,14]
[337588523,1725868242088,-153.72706,0.00040638,14]
[337588524,1725868242098,-153.72706,0.00040638,14]
[337588525,1725868242108,-153.72706,0.00040638,14]
[337588526,1725868242117,-153.72706,0.00040638,14]
[337588527,1725868242126,-153.72706,0.00040638,14]
[337588528,1725868242135,-153.72706,0.00040638,14]
[337588529,1725868242145,-153.72706,0.00040638,14]
[337588530,1725868242154,-153.72706,0.00040638,14]
[337588531,1725868242164,-173.747759,0.00040638,14]
[337588532,1725868242173,-153.72706,0.00040638,14]
[337588533,1725868242183,-173.747759,0.00040638,14]
[337588534,1725868242192,-153.727053,0.00040638,14]
[337588535,1725868242201,-173.747759,0.00040638,14]
[337588536,1725868242210,-173.747759,0.00040638,14]
[337588537,1725868242220,-173.747759,0.00040638,14]
[337588538,1725868242229,-173.74775,0.00040638,14]
[337588539,1725868242240,-261.326949,0.00040638,14]
[337588540,1725868242249,-213.848284,0.00040638,14]
[337588541,1725868242259,-261.326949,0.00040638,14]
[337588542,1725868242269,-213.848284,0.00040638,14]
[337588543,1725868242279,-261.326949,0.00040638,14]
[337588544,1725868242288,-213.848284,0.00040638,14]
[337588545,1725868242297,-261.326949,0.00040638,14]
[337588546,1725868242307,-213.848284,0.00040638,14]
[337588548,1725868242316,-261.326949,0.00040638,14]
[337588549,1725868242325,-213.848284,0.00040638,14]
[337588550,1725868242335,-261.326949,0.00040638,14]
[337588551,1725868242344,-261.326949,0.00040638,14]
[337588552,1725868242354,-261.326949,0.00040638,14]
[337588553,1725868242364,-261.326949,0.00040638,14]
[337588554,1725868242373,-213.848284,0.00040638,14]
[337588555,1725868242383,-261.326954,0.00040638,14]
[337588556,1725868242394,-213.848284,0.00040638,14]
[337588557,1725868242404,-213.848284,0.00040638,14]
[337588558,1725868242414,-213.848284,0.00040638,14]
[337588559,1725868242423,-213.848287,0.00040638,14]
[337588560,1725868242432,-500.0,0.00040638,30]
[337588561,1725868242442,-501.36189541,0.00040638,30]
[337588562,1725868242451,-500.0,0.00040638,30]
[337588564,1725868242461,-632.54,0.00040638,30]
[337588566,1725868242471,-500.0,0.00040638,30]
[337588567,1725868242480,-868.07,0.00040638,30]
[337588568,1725868242489,-500.0,0.00040638,30]
[337588569,1725868242499,-25310.83,0.00040638,30]
[337588570,1725868242508,-625.01165026,0.00040638,30]
[337588571,1725868242519,-583.34,0.00040638,30]
[337588572,1725868242528,-1681.38,0.00040638,30]
[337588573,1725868242537,-2642.04,0.00040638,30]
[337588574,1725868242546,-341.915384,0.00040638,14]
[337588575,1725868242556,-341.915384,0.00040638,14]
[337588576,1725868242565,-341.915384,0.00040638,14]
[337588577,1725868242574,-5519.05,0.00040638,30]
[337588578,1725868242583,-341.915374,0.00040638,14]
[337588579,1725868242593,-999.04,0.00040638,30]
[337588580,1725868242603,-254.546444,0.00040638,14]
[337588581,1725868242613,-254.546444,0.00040638,14]
[337588582,1725868242623,-254.546444,0.00040638,14]
[337588583,1725868242633,-254.546444,0.00040638,14]
[337588584,1725868242643,-254.546444,0.00040638,14]
[337588585,1725868242652,-254.546444,0.00040638,14]
[337588586,1725868242663,-500.0,0.00040638,30]
[337588587,1725868242672,-500.0,0.00040638,30]
[337588588,1725868242682,-500.0,0.00040638,30]
[337588589,1725868242691,-500.0,0.00040638,30]
[337588590,1725868242700,-618.02,0.00040638,30]
[337588591,1725868242710,-1783.82,0.00040638,30]
[337588592,1725868242721,-722.95,0.00040638,30]
[337588593,1725868242731,-500.0,0.00040638,30]
[337588594,1725868242741,-1453.8,0.00040638,30]
[337588595,1725868242751,-2232.57867139,0.00040646,120]
[337588596,1725868242763,-254.546444,0.00040646,14]
[337588597,1725868242772,-254.546444,0.00040646,14]
[337588598,1725868242781,-500.0,0.00040647,30]
[337588599,1725868242791,-500.0,0.00040647,30]
[337588600,1725868242801,-833.59,0.00040647,30]
[337588601,1725868242812,-500.0,0.00040647,30]
[337588602,1725868242822,-500.0,0.00040647,30]
[337588603,1725868242832,-500.0,0.00040647,30]
[337588605,1725868242842,-500.0,0.00040647,30]
[337588606,1725868242852,-666.01,0.00040647,30]
[337588607,1725868242862,-1774.894287,0.00040647,14]
[337588609,1725868242872,-1774.894287,0.00040647,14]
[337588611,1725868242881,-1774.894287,0.00040647,14]
[337588613,1725868242891,-1774.894287,0.00040647,14]
[337588615,1725868242900,-1774.894287,0.00040647,14]
[337588617,1725868242910,-1774.894287,0.00040647,14]
[337588619,1725868242920,-1774.894287,0.00040647,14]
[337588620,1725868242929,-500.0,0.00040647,30]
[337588621,1725868242939,-1774.894287,0.00040647,14]
[337588622,1725868242948,-1774.894287,0.00040647,14]
[337588623,1725868242958,-1774.894287,0.00040647,14]
[337588624,1725868242967,-500.0,0.00040647,30]
[337588625,1725868242977,-167.749523,0.00040647,14]
[337588626,1725868242995,-167.749523,0.00040647,14]
[337588627,1725868243004,-167.749523,0.00040647,14]
[337588628,1725868243015,-167.749523,0.00040647,14]
[337588629,1725868243025,-167.749523,0.00040647,14]
[337588630,1725868243035,-167.749523,0.00040647,14]
[337588631,1725868243046,-167.749523,0.00040647,14]
[337588632,1725868243058,-167.749523,0.00040647,14]
[337588633,1725868243069,-622.47,0.00040647,30]
[337588634,1725868243078,-500.0,0.00040647,30]
[337588635,1725868243087,-285.63,0.00040647,7]
[337588636,1725868243097,-1604.8,0.00040647,30]
[337588637,1725868243106,-500.0,0.00040647,30]
[337588638,1725868243116,-500.0,0.00040647,30]
[337588639,1725868243126,-500.0,0.00040647,30]
[337588640,1725868243136,-501.59858043,0.00040647,30]
[337588641,1725868243146,-500.0,0.00040647,30]
[337588642,1725868243156,-500.0,0.00040647,30]
[337588643,1725868243166,-500.0,0.00040647,30]
[337588644,1725868243175,-502.53622247,0.00040647,30]
[337588645,1725868243184,-500.0,0.00040647,30]
[337588646,1725868243194,-151.0,0.00040647,14]
[337588647,1725868243204,-151.0,0.00040647,14]
[337588648,1725868243213,-151.0,0.00040647,14]
[337588649,1725868243222,-151.0,0.00040647,14]
[337588650,1725868243231,-525.69215942,0.00040647,30]
[337588651,1725868243241,-500.0,0.00040647,30]
[337588652,1725868243251,-500.0,0.00040647,30]
[337588653,1725868243262,-500.0,0.00040647,30]
[337588654,1725868243271,-500.0,0.00040647,30]
[337588655,1725868243283,-151.0,0.00040647,14]
[337588656,1725868243292,-501.663795,0.00040647,30]
[337588657,1725868243302,-501.51686593,0.00040647,30]
[337588658,1725868243312,-500.0,0.00040647,30]
[337588659,1725868243323,-503.02724237,0.00040647,30]
[337588660,1725868243332,-627.8,0.00040647,30]
[337588661,1725868243343,-908.04,0.00040647,30]
[337588662,1725868243354,-500.0,0.00040647,30]
[337588663,1725868243364,-612.33,0.00040647,30]
[337588664,1725868243373,-500.0,0.00040647,10]
[337588665,1725868243383,-501.11443841,0.00040647,30]
[337588666,1725868243393,-500.0,0.00040647,30]
[337588667,1725868243403,-500.0,0.00040647,30]
[337588668,1725868243412,-500.0,0.00040647,30]
[337588669,1725868243422,-500.0,0.00040647,30]
[337588670,1725868243432,-574.37,0.00040647,30]
[337588671,1725868243441,-500.0,0.00040647,30]
[337588672,1725868243451,-500.0,0.00040647,30]
[337588673,1725868243462,-1789.85,0.00040647,30]
[337588674,1725868243471,-500.0,0.00040647,30]
[337588675,1725868243480,-501.81241,0.00040647,30]
[337588676,1725868243491,-500.0,0.00040647,30]
[337588677,1725868243501,-500.0,0.00040647,30]
[337588678,1725868243510,-500.0,0.00040647,30]
[337588679,1725868243524,-500.0,0.00040647,30]
[337588680,1725868243537,-990.06,0.00040647,30]
[337588681,1725868243546,-1770.07,0.00040647,30]
[337588682,1725868243555,-500.0,0.00040647,30]
[337588683,1725868243564,-500.0,0.00040647,30]
[337588684,1725868243573,-500.0,0.00040647,30]
[337588686,1725868243582,-500.0,0.00040647,30]
[337588687,1725868243592,-500.0,0.00040647,30]
[337588688,1725868243601,-678.41,0.00040647,30]
[337588690,1725868243610,-500.0,0.00040647,30]
[337588691,1725868243620,-500.0,0.00040647,2]
[337588692,1725868243629,-500.0,0.00040647,30]
[337588694,1725868243638,-500.0,0.00040647,30]
[337588695,1725868243649,-678.53,0.00040647,30]
[337588696,1725868243658,-512.76458089,0.00040647,30]
[337588697,1725868243667,-500.0,0.00040647,30]
[337588698,1725868243677,-1713.0,0.00040647,30]
[337588699,1725868243687,-500.0,0.00040647,30]
[337588700,1725868243696,-500.0,0.00040647,30]
[337588701,1725868243705,-500.0,0.00040647,30]
[337588702,1725868243714,-500.0,0.00040647,30]
[337588703,1725868243725,-2232.15,0.00040647,30]
[337588704,1725868243734,-500.72408955,0.00040647,30]
[337588705,1725868243743,-507.8829069,0.00040647,30]
[337588706,1725868243753,-500.0,0.00040647,30]
[337588707,1725868243769,-500.0,0.00040647,30]
[337588708,1725868243779,-500.0,0.00040647,30]
[337588709,1725868243790,-622.3682398,0.00040647,30]
[337588710,1725868243799,-549.5,0.00040647,30]
[337588711,1725868243808,-500.0,0.00040647,30]
[337588712,1725868243817,-796.67,0.00040647,30]
[337588713,1725868243826,-759.63,0.00040647,30]
[337588714,1725868243836,-240.29694858,0.00040647,30]
[337588715,1725868243846,-529.51221289,0.00040647,30]
[337588716,1725868243857,-500.0,0.00040647,30]
[337588717,1725868243866,-500.0,0.00040647,30]
[337588718,1725868243875,-498.04118564,0.00040647,30]
[337588719,1725868243884,-500.0,0.00040647,30]
[337588720,1725868243894,-501.6634982,0.00040647,30]
[337588721,1725868243903,-502.21524,0.00040647,30]
[337588722,1725868243912,-500.0,0.00040647,30]
[337588723,1725868243922,-1438.88,0.00040647,30]
[337588724,1725868243931,-500.0,0.00040647,30]
[337588725,1725868243941,-500.0,0.00040647,30]
[337588726,1725868243950,-500.0,0.00040647,30]
[337588727,1725868243960,-500.0,0.00040647,30]
[337588728,1725868243969,-500.0,0.00040647,30]
[337588729,1725868243979,-273.98558914,0.00040647,30]
[337588730,1725868243988,-500.0,0.00040647,30]
[337588731,1725868243997,-500.0,0.00040647,30]
[337588732,1725868244007,-500.0,0.00040647,30]
[337588734,1725868244019,-502.42175064,0.00040647,30]
[337588735,1725868244029,-500.0,0.00040647,30]
[337588736,1725868244038,-500.0,0.00040647,30]
[337588737,1725868244047,-500.0,0.00040647,30]
[337588738,1725868244057,-607.4,0.00040647,30]
[337588739,1725868244069,-501.05563708,0.00040647,30]
[337588740,1725868244079,-500.0,0.00040647,30]
[337588741,1725868244088,-500.0,0.00040647,30]
[337588742,1725868244098,-501.36836943,0.00040647,30]
[337588743,1725868244107,-500.0,0.00040647,30]
[337588744,1725868244118,-500.0,0.00040647,30]
[337588745,1725868244127,-2144.59,0.00040647,30]
[337588746,1725868244136,-500.0,0.00040647,30]
[337588747,1725868244146,-500.36544117,0.00040647,30]
[337588748,1725868244155,-501.44245015,0.00040647,30]
[337588749,1725868244165,-502.88880513,0.00040647,30]
[337588750,1725868244174,-500.0,0.00040647,30]
[337588751,1725868244183,-500.0,0.00040647,30]
[337588752,1725868244193,-500.0,0.00040647,30]
[337588753,1725868244202,-90188.97,0.00040647,30]
[337588754,1725868244211,-500.9987486,0.00040647,30]
[337588755,1725868244221,-500.28680857,0.00040647,30]
[337588756,1725868244231,-500.0,0.00040647,30]
[337588757,1725868244240,-500.0,0.00040647,30]
[337588758,1725868244250,-500.0,0.00040647,30]
[337588759,1725868244260,-500.0,0.00040647,30]
[337588760,1725868244270,-500.0,0.00040647,30]
[337588761,1725868244279,-582.12,0.00040647,30]
[337588762,1725868244289,-500.0,0.00040647,30]
[337588763,1725868244298,-500.0,0.00040647,30]
[337588764,1725868244307,-500.0,0.00040647,30]
[337588765,1725868244317,-500.0,0.00040647,30]
[337588766,1725868244326,-1677.37,0.00040647,30]
[337588767,1725868244336,-1305.2,0.00040647,30]
[337588768,1725868244345,-775.74,0.00040647,30]
[337588769,1725868244354,-501.26264946,0.00040647,30]
[337588770,1725868244363,-503.97530236,0.00040647,30]
[337588771,1725868244372,-500.0,0.00040647,30]
[337588772,1725868244381,-1147.28,0.00040647,30]
[337588773,1725868244391,-500.0,0.00040647,30]